bitfinex-derivatives/quotes_SOLF0:USTF0_20260217
["timestamp","ask_amount","ask_price","bid_price","bid_amount"]
[1771344959170,11.02472501,84.561,84.49,6.00057388]
[1771344959374,11.02472501,84.549,84.486,11.63017837]
[1771344959582,11.02472501,84.542,84.486,11.63017837]
[1771344959774,6.00057388,84.55,84.486,11.63017837]
[1771344959975,11.02472501,84.561,84.486,11.63017837]
[1771344960372,11.02472501,84.561,84.488,11.63017837]
[1771344960577,11.02472501,84.561,84.49,11.63017837]
[1771344960777,11.02472501,84.557,84.506,10.6549]
[1771344961080,11.02472501,84.549,84.472,11.63017837]
[1771344961280,21.67432501,84.548,84.496,10.6561]
[1771344961475,6.00057388,84.55,84.496,10.6561]
[1771344961476,11.02472501,84.547,84.496,10.6561]
[1771344961675,11.02472501,84.547,84.489,11.63017837]
[1771344961676,11.02472501,84.547,84.503,10.6551]
[1771344961872,11.02472501,84.569,84.491,11.63017837]
[1771344962277,21.2944,84.568,84.478,11.63017837]
[1771344962477,165.5335,84.614,84.478,11.63017837]
[1771344962478,11.02472501,84.549,84.478,11.63017837]
[1771344962676,6.00057388,84.55,84.478,11.63017837]
[1771344962880,11.02472501,84.565,84.514,10.6539]
[1771344963085,11.02472501,84.565,84.506,11.63017837]
[1771344963881,10.6476,84.564,84.507,10.6547]
[1771344964079,10.6476,84.564,84.508,11.63017837]
[1771344964273,21.67232501,84.564,84.508,11.63017837]
[1771344964475,11.02472501,84.563,84.508,11.63017837]
[1771344965485,11.02472501,84.552,84.497,10.6559]
[1771344966181,11.02472501,84.552,84.503,11.63017837]
[1771344966383,10.6485,84.557,84.503,11.63017837]
[1771344967690,10.6494,84.55,84.503,11.63017837]
[1771344967984,11.02472501,84.549,84.487,86.15017837]
[1771344968184,11.02472501,84.549,84.488,11.63017837]
[1771344968376,11.02472501,84.53,84.471,11.63017837]
[1771344968989,11.02472501,84.53,84.478,11.63017837]
[1771344969295,11.02472501,84.529,84.478,11.63017837]
[1771344969784,10.6538,84.515,84.478,11.63017837]
[1771344969989,10.6538,84.515,84.463,11.63017837]
[1771344970490,10.6529,84.522,84.463,11.63017837]
[1771344970693,11.02472501,84.529,84.463,11.63017837]
[1771344970884,11.02472501,84.529,84.463,22.29037837]
[1771344971085,11.02472501,84.529,84.451,74.52]
[1771344971086,11.02472501,84.529,84.464,11.63017837]
[1771344971387,6.00057388,84.55,84.464,11.63017837]
[1771344971691,6.00057388,84.55,84.45,6.00057388]
[1771344971692,11.02472501,84.567,84.508,11.63017837]
[1771344972282,10.6477,84.564,84.512,11.63017837]
[1771344973487,10.6485,84.557,84.512,11.63017837]
[1771344973786,11.02472501,84.567,84.501,74.52]
[1771344973991,11.02472501,84.551,84.491,11.63017837]
[1771344974292,11.02472501,84.549,84.48,74.52]
[1771344974585,6.00057388,84.55,84.473,11.63017837]
[1771344974586,10.6528,84.523,84.473,22.28917837]
[1771344974890,11.55986338,84.532,84.473,11.63017837]
[1771344976790,10.6519,84.53,84.48,10.6581]
[1771344977394,10.653,84.522,84.473,11.63017837]
[1771344977879,10.653,84.522,84.475,10.6587]
[1771344978086,10.653,84.522,84.473,11.63017837]
[1771344978284,10.6541,84.512,84.468,74.52]
[1771344978883,11.55986338,84.529,84.468,74.52]
[1771344979078,11.55986338,84.529,84.451,10.93939695]
[1771344979578,11.55986338,84.49,84.431,10.93939695]
[1771344979780,6.00057388,84.51,84.432,10.93939695]
[1771344979983,11.55986338,84.509,84.432,10.93939695]
[1771344980180,11.55986338,84.509,84.434,10.93939695]
[1771344980385,11.55986338,84.509,84.436,10.93939695]
[1771344980589,11.55986338,84.509,84.45,6.00057388]
[1771344981481,10.6547,84.508,84.45,6.00057388]
[1771344981685,10.6547,84.508,84.451,10.93939695]
[1771344981886,10.6547,84.508,84.452,10.6617]
[1771344982287,10.6547,84.508,84.453,10.93939695]
[1771344982487,10.6556,84.501,84.453,10.93939695]
[1771344982698,11.55986338,84.509,84.453,10.93939695]
[1771344983087,11.55986338,84.509,84.454,10.6613]
[1771344983282,11.55986338,84.527,84.455,10.93939695]
[1771344983488,6.00057388,84.52,84.455,10.93939695]
[1771344983693,22.21406338,84.512,84.455,10.93939695]
[1771344983889,11.55986338,84.512,84.455,10.93939695]
[1771344984594,11.55986338,84.512,84.456,74.54]
[1771344984892,11.55986338,84.512,84.457,10.93939695]
[1771344985085,11.55986338,84.529,84.461,10.93939695]
[1771344985586,11.55986338,84.549,84.481,10.93939695]
[1771344985782,11.55986338,84.549,84.48,6.00529846]
[1771344985783,11.55986338,84.549,84.483,10.93939695]
[1771344986193,11.55986338,84.549,84.466,10.93939695]
[1771344986391,11.55986338,84.549,84.468,10.93939695]
[1771344986694,11.55986338,84.549,84.469,74.54]
[1771344987091,6.00529846,84.55,84.469,74.54]
[1771344987092,11.55986338,84.533,84.47,10.93939695]
[1771344987391,165.5841,84.588,84.464,74.54]
[1771344987392,11.55986338,84.529,84.464,74.54]
[1771344987795,11.55986338,84.529,84.465,10.66]
[1771344988394,11.55986338,84.529,84.464,74.54]
[1771344988796,11.55986338,84.529,84.464,85.2001]
[1771344989295,11.55986338,84.529,84.453,10.93939695]
[1771344989899,10.6544,84.51,84.461,10.93939695]
[1771344990101,11.55986338,84.519,84.461,10.93939695]
[1771344990600,10.6543,84.511,84.461,10.93939695]
[1771344990794,11.55986338,84.519,84.461,10.93939695]
[1771344991300,11.55986338,84.536,84.477,10.93939695]
[1771344992198,11.55986338,84.536,84.454,21.3428431]
[1771344992199,11.55986338,84.536,84.486,10.93939695]
[1771344992402,10.6501,84.545,84.488,10.93939695]
[1771344992902,10.6501,84.545,84.49,10.93939695]
[1771344993092,10.6501,84.545,84.491,85.47939695]
[1771344993289,10.6501,84.545,84.492,10.93939695]
[1771344993602,10.6509,84.538,84.492,10.93939695]
[1771344994093,10.6509,84.538,84.466,14.26605483]
[1771344994094,11.55986338,84.538,84.474,10.93939695]
[1771344994298,11.55986338,84.538,84.475,74.54]
[1771344995204,10.6525,84.525,84.474,10.93939695]
[1771344995498,22.21236338,84.525,84.474,10.93939695]
[1771344995894,11.55986338,84.525,84.46,20.27135329]
[1771344996099,6.00529846,84.54,84.461,74.54]
[1771344996100,11.55986338,84.517,84.461,74.54]
[1771344996499,10.6537,84.516,84.462,10.93939695]
[1771344996804,11.55986338,84.517,84.462,10.93939695]
[1771344997100,10.6518,84.531,84.48,10.93939695]
[1771344997300,11.55986338,84.539,84.48,10.93939695]
[1771344997796,14.49693925,84.584,84.461,74.54]
[1771344997797,11.55986338,84.557,84.491,10.93939695]
[1771344998395,11.55986338,84.557,84.493,10.93939695]
[1771344998593,11.55986338,84.557,84.504,10.93939695]
[1771344998791,11.55986338,84.557,84.471,21.4554274]
[1771344998792,11.55986338,84.575,84.511,10.93939695]
[1771344998999,6.00529846,84.59,84.513,10.93939695]
[1771344999199,11.55986338,84.589,84.513,10.93939695]
[1771344999500,11.55986338,84.589,84.512,74.54]
[1771344999501,10.6453,84.582,84.524,10.6526]
[1771344999702,10.6453,84.582,84.525,10.93939695]
[1771344999905,11.55986338,84.589,84.525,10.93939695]
[1771345000492,11.55986338,84.589,84.51,6.00529846]
[1771345000493,11.55986338,84.589,84.527,10.93939695]
[1771345000693,11.55986338,84.589,84.5,6.00529846]
[1771345000694,11.55986338,84.589,84.531,10.93939695]
[1771345001100,11.55986338,84.589,84.534,10.6513]
[1771345001302,11.55986338,84.606,84.535,10.93939695]
[1771345001603,11.55986338,84.606,84.509,21.4554274]
[1771345001604,6.00529846,84.62,84.551,10.93939695]
[1771345001798,10.6423,84.606,84.553,10.93939695]
[1771345001998,10.6423,84.606,84.554,74.54]
[1771345002201,10.6423,84.606,84.553,10.93939695]
[1771345002396,10.6423,84.606,84.55,6.00529846]
[1771345002397,10.6423,84.606,84.554,85.47939695]
[1771345002799,10.6423,84.606,84.511,21.4554274]
[1771345002800,10.6433,84.598,84.537,10.93939695]
[1771345002999,11.55986338,84.597,84.547,74.54]
[1771345003298,11.55986338,84.597,84.538,10.6508]
[1771345003299,11.55986338,84.597,84.54,74.52]
[1771345004006,11.55986338,84.597,84.541,10.93939695]
[1771345004796,11.09102282,84.619,84.542,11.44956609]
[1771345005002,11.09102282,84.619,84.551,11.44956609]
[1771345005203,11.09102282,84.619,84.552,85.96956609]
[1771345005403,10.6425,84.604,84.552,85.96956609]
[1771345006301,10.6415,84.613,84.555,11.44956609]
[1771345006501,11.09102282,84.619,84.555,11.44956609]
[1771345006805,21.2716,84.658,84.563,11.44956609]
[1771345006806,11.09102282,84.632,84.563,11.44956609]
[1771345007305,11.09102282,84.632,84.57,6.00529846]
[1771345007494,11.09102282,84.632,84.571,85.96956609]
[1771345007694,11.09102282,84.632,84.572,11.44956609]
[1771345007900,21.72692282,84.657,84.588,11.44956609]
[1771345008106,11.09102282,84.676,84.591,11.44956609]
[1771345008309,6.00529846,84.68,84.554,14.26605483]
[1771345008310,11.09102282,84.693,84.631,11.44956609]
[1771345008607,11.09102282,84.693,84.635,11.44956609]
[1771345008810,11.09102282,84.689,84.629,74.5]
[1771345009195,11.09102282,84.689,84.618,11.44956609]
[1771345009405,11.09102282,84.689,84.62,11.44956609]
[1771345009908,6.00529846,84.69,84.621,74.5]
[1771345009909,21.72322282,84.687,84.621,74.5]
[1771345010108,11.09102282,84.687,84.621,74.5]
[1771345010405,11.09102282,84.687,84.622,11.44956609]
[1771345010604,11.09102282,84.687,84.624,10.64]
[1771345010799,11.09102282,84.687,84.625,74.5]
[1771345011001,11.09102282,84.686,84.625,74.5]
[1771345011298,11.09102282,84.686,84.622,11.44956609]
[1771345011299,11.09102282,84.686,84.624,74.48]
[1771345011999,11.09102282,84.686,84.625,11.44956609]
[1771345012203,11.09102282,84.709,84.65,6.00529846]
[1771345012399,11.09102282,84.729,84.651,11.44956609]
[1771345012795,10.6286,84.716,84.651,11.44956609]
[1771345013003,11.09102282,84.729,84.64,6.00529846]
[1771345013201,10.6298,84.706,84.641,74.48]
[1771345013412,10.6298,84.706,84.64,6.00529846]
[1771345013413,11.23422094,84.706,84.633,10.86958235]
[1771345013610,11.23422094,84.706,84.62,6.00529846]
[1771345013611,11.23422094,84.689,84.62,6.00529846]
[1771345013902,6.00529846,84.69,84.622,10.86958235]
[1771345014106,11.23422094,84.709,84.64,6.00529846]
[1771345014297,6.00529846,84.71,84.64,16.87488081]
[1771345014298,11.23422094,84.696,84.64,16.87488081]
[1771345014696,11.23422094,84.696,84.626,74.46]
[1771345014903,11.23422094,84.696,84.627,10.86958235]
[1771345015306,10.6318,84.69,84.628,10.6395]
[1771345015607,6.00529846,84.69,84.62,6.00529846]
[1771345015902,11.23422094,84.689,84.622,10.86958235]
[1771345016104,11.23422094,84.709,84.631,10.86958235]
[1771345016707,10.631,84.697,84.636,10.86958235]
[1771345017010,10.631,84.697,84.6,6.00529846]
[1771345017011,11.23422094,84.696,84.626,10.86958235]
[1771345017207,6.00529846,84.71,84.62,6.00529846]
[1771345017208,11.23422094,84.694,84.63,10.86958235]
[1771345017701,21.86602094,84.69,84.63,10.86958235]
[1771345017897,11.23422094,84.679,84.594,10.86958235]
[1771345018297,11.23422094,84.679,84.603,10.86958235]
[1771345019012,11.23422094,84.679,84.558,255.03545638]
[1771345019013,11.23422094,84.679,84.614,10.86958235]
[1771345019804,10.6333,84.678,84.618,10.6408]
[1771345020002,11.23422094,84.699,84.619,10.86958235]
[1771345020411,296.0,84.755,84.64,6.00529846]
[1771345020412,11.23422094,84.718,84.64,6.00529846]
[1771345020707,11.23422094,84.709,84.641,10.86958235]
[1771345021105,11.23422094,84.689,84.621,10.86958235]
[1771345021711,11.23422094,84.689,84.603,10.86958235]
[1771345022208,10.6365,84.653,84.603,10.86958235]
[1771345022414,10.6365,84.653,84.561,21.2959]
[1771345022415,11.23422094,84.652,84.581,10.86958235]
[1771345022805,10.6379,84.641,84.583,10.6452]
[1771345023109,35.52,84.69,84.58,6.00529846]
[1771345023110,11.23422094,84.669,84.584,10.86958235]
[1771345023409,11.23422094,84.669,84.565,10.86958235]
[1771345023410,11.23422094,84.649,84.565,10.86958235]
[1771345023613,6.00529846,84.65,84.51,21.3086]
[1771345023614,11.23422094,84.629,84.54,6.00529846]
[1771345023805,11.23422094,84.659,84.581,10.86958235]
[1771345024111,11.23422094,84.639,84.562,10.86958235]
[1771345024410,11.23422094,84.639,84.564,10.86958235]
[1771345024607,10.6391,84.632,84.573,10.6464]
[1771345024807,11.23422094,84.639,84.574,10.86958235]
[1771345025411,11.23422094,84.639,84.576,10.646]
[1771345025804,11.23422094,84.639,84.584,10.645]
[1771345026004,11.23422094,84.639,84.574,85.30958235]
[1771345026005,11.23422094,84.639,84.574,10.86958235]
[1771345026305,11.23422094,84.677,84.601,10.86958235]
[1771345026510,11.23422094,84.677,84.618,10.86958235]
[1771345026700,11.23422094,84.677,84.6,6.00529846]
[1771345027110,11.23422094,84.668,84.6,6.00529846]
[1771345027508,10.6346,84.667,84.6,6.00529846]
[1771345027811,10.6346,84.667,84.591,10.6441]
[1771345027812,11.23422094,84.668,84.58,16.87488081]
[1771345028014,11.23422094,84.668,84.581,10.86958235]
[1771345028510,10.637,84.649,84.581,21.51488235]
[1771345028708,11.23422094,84.648,84.581,10.86958235]
[1771345029308,11.23422094,84.646,84.581,10.86958235]
[1771345030314,10.6376,84.644,84.581,10.86958235]
[1771345030614,11.23422094,84.643,84.581,10.86958235]
[1771345030807,11.23422094,84.629,84.562,10.86958235]
[1771345031014,11.23422094,84.609,84.542,10.86958235]
[1771345031405,11.23422094,84.609,84.546,10.86958235]
[1771345031803,11.23422094,84.609,84.524,10.86958235]
[1771345032014,11.23422094,84.6,84.531,10.6516]
[1771345032211,11.23422094,84.6,84.524,10.86958235]
[1771345032519,11.23422094,84.589,84.524,10.86958235]
[1771345033117,11.23422094,84.589,84.527,10.86958235]
[1771345033604,11.23422094,84.589,84.53,10.6518]
[1771345034008,11.23422094,84.589,84.527,10.86958235]
[1771345034206,11.23422094,84.586,84.521,10.6529]
[1771345034411,21.2752,84.644,84.483,21.3154]
[1771345034412,10.99249354,84.607,84.531,11.84086046]
[1771345035016,10.99249354,84.625,84.555,11.84086046]
[1771345035305,10.99249354,84.649,84.571,11.84086046]
[1771345035507,10.6396,84.628,84.567,10.6471]
[1771345035806,10.99249354,84.627,84.567,11.84086046]
[1771345036009,10.99249354,84.649,84.571,11.84086046]
[1771345036410,10.99249354,84.649,84.583,11.84086046]
[1771345037321,10.99249354,84.649,84.585,10.6449]
[1771345037718,10.99249354,84.649,84.57,6.00529846]
[1771345037921,10.639,84.633,84.575,10.6461]
[1771345038319,10.6373,84.646,84.591,10.6441]
[1771345038519,10.6373,84.646,84.581,11.84086046]
[1771345038914,10.99249354,84.649,84.592,11.84086046]
[1771345039422,10.99249354,84.649,84.58,6.00529846]
[1771345039718,10.99249354,84.647,84.58,6.00529846]
[1771345039914,10.99249354,84.647,84.578,11.84086046]
[1771345040322,10.99249354,84.636,84.565,10.6473]
[1771345040821,10.99249354,84.629,84.571,10.6466]
[1771345041217,10.6404,84.622,84.562,10.6477]
[1771345041423,10.99249354,84.621,84.561,11.84086046]
[1771345041621,10.99249354,84.621,84.543,11.84086046]
[1771345041818,10.99249354,84.604,84.543,11.84086046]
[1771345042520,10.99249354,84.602,84.524,11.84086046]
[1771345042825,10.99249354,84.575,84.513,10.6539]
[1771345043027,6.00529846,84.57,84.513,10.6539]
[1771345043924,10.99249354,84.569,84.503,10.6552]
[1771345044434,10.6481,84.56,84.503,10.6552]
[1771345044728,10.99249354,84.559,84.495,10.6562]
[1771345045324,10.6494,84.55,84.486,10.6573]
[1771345045526,10.99249354,84.559,84.483,11.84086046]
[1771345045734,5.99779589,84.57,84.458,21.3219]
[1771345045735,5.99779589,84.57,84.491,11.84086046]
[1771345045941,5.99779589,84.57,84.49,5.99779589]
[1771345045942,10.646,84.577,84.516,10.6535]
[1771345046136,10.99249354,84.579,84.512,11.84086046]
[1771345046333,5.99779589,84.59,84.523,11.84086046]
[1771345046538,10.80728179,84.641,84.5,74.46]
[1771345046539,10.99249354,84.619,84.551,11.84086046]
[1771345046938,10.99249354,84.619,84.552,10.649]
[1771345047734,10.99249354,84.619,84.543,10.6501]
[1771345047933,10.99249354,84.609,84.532,11.84086046]
[1771345048233,10.6439,84.594,84.54,10.6505]
[1771345048437,10.99249354,84.609,84.54,10.6505]
[1771345048649,10.99249354,84.609,84.532,11.84086046]
[1771345049238,10.99249354,84.609,84.53,5.99779589]
[1771345049239,10.99249354,84.609,84.54,22.49146046]
[1771345049738,10.99249354,84.609,84.54,11.84086046]
[1771345049941,10.6447,84.587,84.53,16.64949589]
[1771345050334,10.6435,84.597,84.538,22.49166046]
[1771345050535,10.99249354,84.609,84.53,5.99779589]
[1771345050941,10.99249354,84.609,84.532,10.6515]
[1771345051141,10.99249354,84.609,84.532,22.49236046]
[1771345051440,10.99249354,84.609,84.533,11.84086046]
[1771345051635,10.99249354,84.607,84.542,10.6503]
[1771345052345,10.99249354,84.604,84.542,10.6503]
[1771345052844,10.99249354,84.604,84.549,10.6494]
[1771345053046,10.99249354,84.604,84.533,11.84086046]
[1771345053441,10.99249354,84.604,84.55,10.6493]
[1771345054446,10.99249354,84.604,84.558,10.6483]
[1771345054739,35.52,84.649,84.558,10.6482]
[1771345054740,21.63269354,84.623,84.558,10.6482]
[1771345054941,10.99249354,84.623,84.558,11.84086046]
[1771345055733,10.99249354,84.62,84.55,5.99779589]
[1771345055948,10.92921604,84.675,84.55,5.99779589]
[1771345055949,10.99249354,84.638,84.551,11.84086046]
[1771345056538,10.99249354,84.629,84.567,10.6472]
[1771345056740,10.99249354,84.619,84.551,11.84086046]
[1771345056939,10.99249354,84.619,84.5,19.9910272]
[1771345056940,10.99249354,84.619,84.533,11.84086046]
[1771345057145,10.99249354,84.603,84.533,22.49236046]
[1771345057337,10.99249354,84.599,84.533,22.49236046]
[1771345057542,10.99249354,84.619,84.533,11.84086046]
[1771345058043,10.99249354,84.617,84.533,11.84086046]
[1771345058747,5.99779589,84.62,84.533,11.84086046]
[1771345058748,10.99249354,84.615,84.533,11.84086046]
[1771345059249,10.99249354,84.615,84.5,5.99779589]
[1771345059250,10.99249354,84.595,84.514,11.84086046]
[1771345060748,10.6448,84.586,84.526,22.49316046]
[1771345061344,10.99249354,84.595,84.526,11.84086046]
[1771345061649,10.99249354,84.559,84.486,11.84086046]
[1771345061947,10.6509,84.538,84.486,11.84086046]
[1771345062653,10.99249354,84.541,84.471,11.84086046]
[1771345063038,10.6524,84.526,84.471,11.84086046]
[1771345063340,10.99249354,84.541,84.471,11.84086046]
[1771345063548,10.6563,84.495,84.441,11.84086046]
[1771345064247,10.6579,84.483,84.441,11.84086046]
[1771345065838,10.6562,84.496,84.441,11.84086046]
[1771345066045,10.99249354,84.506,84.441,11.84086046]
[1771345066545,10.6529,84.522,84.465,11.97654094]
[1771345066945,10.87850364,84.526,84.45,5.99779589]
[1771345066946,10.6542,84.512,84.45,5.99779589]
[1771345067138,10.87850364,84.519,84.45,5.99779589]
[1771345067553,10.6543,84.511,84.45,5.99779589]
[1771345068448,10.6568,84.491,84.435,10.6638]
[1771345068638,10.6568,84.491,84.43,5.99779589]
[1771345068639,10.87850364,84.499,84.43,17.97433683]
[1771345068838,10.87850364,84.499,84.431,11.97654094]
[1771345069852,10.87850364,84.499,84.432,10.6642]
[1771345070051,10.87850364,84.499,84.433,11.97654094]
[1771345070253,10.87850364,84.499,84.435,10.6638]
[1771345071956,10.87850364,84.499,84.415,74.52]
[1771345071957,10.87850364,84.499,84.422,10.6655]
[1771345072252,10.87850364,84.499,84.415,11.97654094]
[1771345072253,10.87850364,84.499,84.431,10.6643]
[1771345072653,10.87850364,84.499,84.408,2.05896448]
[1771345072654,11.19816275,84.479,84.408,11.22464366]
[1771345072963,11.19816275,84.479,84.411,11.22464366]
[1771345073151,17.19595864,84.5,84.411,11.22464366]
[1771345073353,17.19595864,84.5,84.431,11.22464366]
[1771345073549,17.19595864,84.5,84.437,11.22464366]
[1771345073746,11.19816275,84.499,84.437,11.22464366]
[1771345074149,11.19816275,84.499,84.42,5.99779589]
[1771345074350,11.19816275,84.499,84.395,2.06039076]
[1771345074351,11.19816275,84.52,84.454,10.6614]
[1771345074549,11.19816275,84.52,84.441,11.22464366]
[1771345074949,11.19816275,84.52,84.43,74.54]
[1771345074950,11.19816275,84.52,84.474,10.6589]
[1771345075555,11.19816275,84.52,84.465,10.66]
[1771345076357,11.19816275,84.52,84.473,10.659]
[1771345077348,11.19816275,84.52,84.461,11.22464366]
[1771345078360,11.19816275,84.517,84.444,10.6626]
[1771345078659,11.19816275,84.517,84.441,11.22464366]
[1771345078850,11.19816275,84.536,84.461,11.22464366]
[1771345079246,11.19816275,84.519,84.452,11.22464366]
[1771345080253,11.19816275,84.519,84.463,10.6602]
[1771345080460,11.19816275,84.519,84.45,5.99779589]
[1771345080461,11.19816275,84.519,84.464,11.22464366]
[1771345080661,11.19816275,84.537,84.464,11.22464366]
[1771345080857,5.99779589,84.54,84.464,11.22464366]
[1771345080858,10.6521,84.528,84.464,11.22464366]
[1771345081057,10.6521,84.528,84.414,21.3328]
[1771345081058,11.19816275,84.499,84.43,5.99779589]
[1771345081357,11.19816275,84.499,84.424,11.22464366]
[1771345081558,10.6579,84.482,84.424,11.22464366]
[1771345081759,11.19816275,84.479,84.424,11.22464366]
[1771345083359,21.3061,84.521,84.41,5.99779589]
[1771345083360,11.19816275,84.498,84.425,11.22464366]
[1771345084368,10.6582,84.48,84.425,11.22464366]
[1771345084658,11.19816275,84.479,84.41,5.99779589]
[1771345084961,11.19816275,84.479,84.411,11.22464366]
[1771345086163,10.6595,84.47,84.418,10.6659]
[1771345087355,11.19816275,84.479,84.411,11.22464366]
[1771345087563,11.19816275,84.479,84.393,11.22464366]
[1771345087761,11.19816275,84.479,84.411,11.22464366]
[1771345088164,11.19816275,84.498,84.428,11.22464366]
[1771345088366,11.19816275,84.498,84.4,5.99779589]
[1771345088367,11.19816275,84.519,84.431,11.22464366]
[1771345088662,11.19816275,84.519,84.4,5.99779589]
[1771345088663,11.19816275,84.511,84.455,11.22464366]
[1771345089662,11.19816275,84.511,84.45,5.99779589]
[1771345089663,11.19816275,84.531,84.458,11.22464366]
[1771345090055,10.6541,84.512,84.458,11.22464366]
[1771345090459,11.19816275,84.514,84.458,11.22464366]
[1771345090868,10.655,84.505,84.458,11.22464366]
[1771345091059,10.655,84.505,84.45,5.99779589]
[1771345091060,11.19816275,84.505,84.45,5.99779589]
[1771345091364,5.99779589,84.52,84.461,10.6605]
[1771345091867,11.19816275,84.519,84.461,10.6605]
[1771345092055,11.19816275,84.538,84.469,11.22464366]
[1771345093059,10.6531,84.521,84.469,11.22464366]
[1771345093260,11.19816275,84.538,84.469,11.22464366]
[1771345093457,11.19816275,84.538,84.45,5.99779589]
[1771345093765,80.53779589,84.54,84.45,5.99779589]
[1771345093766,11.19816275,84.527,84.467,10.6597]
[1771345094363,80.53779589,84.54,84.469,11.16639919]
[1771345094561,11.0888861,84.545,84.45,5.99779589]
[1771345094562,11.0888861,84.545,84.471,11.16639919]
[1771345095167,11.0888861,84.563,84.491,11.16639919]
[1771345095560,11.0888861,84.585,84.511,11.16639919]
[1771345096863,11.0888861,84.569,84.492,11.16639919]
[1771345097263,11.0888861,84.569,84.511,11.16639919]
[1771345097871,74.54,84.581,84.511,11.16639919]
[1771345098467,85.6288861,84.581,84.511,11.16639919]
[1771345098667,11.0888861,84.599,84.511,11.16639919]
[1771345098865,11.0888861,84.599,84.551,10.6492]
[1771345099164,11.0888861,84.599,84.531,11.16639919]
[1771345099363,11.0888861,84.619,84.531,11.16639919]
[1771345099563,11.0888861,84.619,84.558,10.6483]
[1771345099769,11.0888861,84.619,84.549,11.16639919]
[1771345099958,11.0888861,84.618,84.531,11.16639919]
[1771345100357,10.909656,84.694,84.551,11.16639919]
[1771345100569,5.99779589,84.7,84.584,10.6451]
[1771345100570,11.0888861,84.659,84.584,10.6451]
[1771345100767,11.0888861,84.659,84.55,5.99779589]
[1771345100768,11.0888861,84.659,84.585,11.16639919]
[1771345100967,11.0888861,84.681,84.601,11.16639919]
[1771345101171,5.99779589,84.69,84.601,11.16639919]
[1771345101172,11.0888861,84.669,84.601,11.16639919]
[1771345101665,11.0888861,84.667,84.602,10.6427]
[1771345102068,85.6288861,84.683,84.602,11.16639919]
[1771345102374,85.6288861,84.683,84.6,5.99779589]
[1771345102375,11.0888861,84.705,84.641,11.16639919]
[1771345102665,11.0888861,84.726,84.641,11.16639919]
[1771345102864,11.0888861,84.726,84.661,11.16639919]
[1771345103265,11.0888861,84.726,84.674,10.6337]
[1771345103668,11.0888861,84.746,84.686,10.6322]
[1771345103875,5.97428577,84.74,84.661,11.16639919]
[1771345104069,11.0888861,84.739,84.661,11.16639919]
[1771345104771,175.93084268,84.751,84.684,10.6324]
[1771345104967,11.0888861,84.758,84.684,10.6324]
[1771345105975,11.0888861,84.757,84.684,10.6324]
[1771345106175,11.0888861,84.757,84.668,74.48]
[1771345106176,11.0888861,84.743,84.67,10.6341]
[1771345106471,11.0888861,84.739,84.67,10.6341]
[1771345106678,11.0888861,84.739,84.681,10.6328]
[1771345107268,11.0888861,84.739,84.663,11.16639919]
[1771345107472,11.0888861,84.739,84.675,10.6335]
[1771345107978,11.0888861,84.739,84.663,11.16639919]
[1771345108376,5.97428577,84.74,84.663,11.16639919]
[1771345108377,11.0888861,84.737,84.663,11.16639919]
[1771345108577,11.0888861,84.737,84.644,74.46]
[1771345108578,11.0888861,84.756,84.69,10.6317]
[1771345108776,11.0888861,84.756,84.681,11.16639919]
[1771345109279,11.0888861,84.755,84.681,11.16639919]
[1771345109487,11.0888861,84.753,84.684,10.6324]
[1771345110479,5.97428577,84.77,84.701,11.16639919]
[1771345110880,11.0888861,84.769,84.701,11.16639919]
[1771345112782,11.0888861,84.749,84.652,11.16639919]
[1771345113076,11.0888861,84.749,84.68,17.14068496]
[1771345113771,11.0888861,84.749,84.681,11.16639919]
[1771345114374,11.0888861,84.768,84.691,11.16639919]
[1771345114670,11.0888861,84.768,84.701,11.16639919]
[1771345114871,11.0888861,84.768,84.705,11.16639919]
[1771345115981,5.97428577,84.78,84.707,11.16639919]
[1771345116183,11.0888861,84.779,84.707,11.16639919]
[1771345116482,5.97428577,84.8,84.688,11.16639919]
[1771345116483,11.0888861,84.759,84.688,11.16639919]
[1771345116780,17.06317187,84.78,84.701,11.16639919]
[1771345116990,11.0888861,84.779,84.701,11.16639919]
[1771345117185,11.0888861,84.759,84.701,11.16639919]
[1771345118190,10.6234,84.757,84.701,11.16639919]
[1771345118584,11.0888861,84.779,84.701,11.16639919]
[1771345119080,5.97428577,84.78,84.701,11.16639919]
[1771345119081,10.6237,84.755,84.701,11.16639919]
[1771345119283,11.0888861,84.772,84.701,11.16639919]
[1771345120187,11.0888861,84.772,84.711,10.629]
[1771345121586,11.0888861,84.772,84.701,11.16639919]
[1771345121587,11.0888861,84.772,84.702,10.6301]
[1771345122181,11.0888861,84.77,84.701,11.16639919]
[1771345122786,11.0888861,84.77,84.713,10.6288]
[1771345123187,11.0888861,84.77,84.701,11.16639919]
[1771345123486,11.0888861,84.77,84.69,5.97428577]
[1771345123487,11.0888861,84.759,84.671,11.16639919]